bitfinex-derivatives/quotes_SOLF0:USTF0_20240815
["timestamp","ask_amount","ask_price","bid_price","bid_amount"]
[1723718075498,0.05321304,141.91,141.9,17.063]
[1723718081889,1.2501,141.97,141.95,3.5217]
[1723718082893,4.7714,141.97,141.95,3.5217]
[1723718083391,4.82278731,141.97,141.95,3.57122235]
[1723718084390,0.05138731,141.97,141.95,3.57122235]
[1723718085193,0.05138731,141.97,141.96,3.5215]
[1723718085396,0.05138731,141.97,141.96,17.0615]
[1723718087298,2.6426,142.04,141.96,13.54]
[1723718087508,2.6426,142.04,142.0,13.54]
[1723718087806,3.5198,142.03,142.0,13.54]
[1723718088189,3.5198,142.03,142.0,17.0604]
[1723718088394,3.5201,142.02,142.0,13.54]
[1723718088698,2.6426,142.04,142.0,13.54]
[1723718088999,3.52,142.03,142.0,17.0605]
[1723718089405,3.52,142.03,142.0,13.59290056]
[1723718089406,0.05190953,142.03,142.0,13.59290056]
[1723718089704,3.57170953,142.03,142.01,3.5203]
[1723718090003,0.05190953,142.03,142.0,0.05290056]
[1723718090204,13.54,142.02,142.0,0.05290056]
[1723718090507,13.54,142.02,141.95,13.54]
[1723718090705,1.325,142.01,141.95,13.54]
[1723718090893,3.521,141.99,141.96,3.5215]
[1723718091095,14.865,142.01,141.93,3.4433176]
[1723718091303,13.54,141.99,141.93,17.8]
[1723718091600,0.05221721,141.98,141.96,0.05001782]
[1723718092007,3.5216,141.96,141.93,3.5221]
[1723718092301,3.5216,141.96,141.93,3.56979133]
[1723718093502,3.5214,141.97,141.94,3.522]
[1723718093896,0.05221721,141.98,141.95,13.54]
[1723718094500,3.57331721,141.98,141.95,17.0616]
[1723718095308,0.05221721,141.98,141.96,13.54]
[1723718095997,0.05221721,141.98,141.95,33.81]
[1723718096801,0.05221721,141.98,141.97,3.5213]
[1723718098000,0.05221721,141.98,141.97,37.3313]
[1723718099003,0.05221721,141.98,141.97,3.5213]
[1723718099204,0.05221721,141.98,141.96,3.56888943]
[1723718099509,0.05221721,141.98,141.96,0.04738943]
[1723718100608,0.05221721,141.98,141.96,3.56878943]
[1723718100804,0.05221721,141.98,141.96,0.04738943]
[1723718101010,3.5213,141.97,141.96,0.04738943]
[1723718101404,1.40181721,141.98,141.91,33.81]
[1723718101598,3.5219,141.95,141.92,3.5224]
[1723718102096,3.5219,141.95,141.93,3.5222]
[1723718102297,3.5216,141.96,141.93,3.5222]
[1723718102512,1.3496,141.98,141.91,37.33081432]
[1723718102811,0.0509901,141.96,141.93,33.83682479]
[1723718104112,0.0509901,141.96,141.95,3.5218]
[1723718104312,0.0509901,141.96,141.93,33.83682479]
[1723718104507,3.5725901,141.96,141.93,37.35892479]
[1723718104815,3.5725901,141.96,141.93,33.83682479]
[1723718105001,0.0509901,141.96,141.93,33.83682479]
[1723718106611,0.0509901,141.96,141.94,3.5219]
[1723718107106,0.0509901,141.96,141.93,33.83682479]
[1723718107619,0.0509901,141.96,141.94,3.522]
[1723718109615,0.0509901,141.96,141.95,3.5218]
[1723718110521,0.0509901,141.96,141.95,37.3318]
[1723718112916,1.325,142.01,141.99,3.5206]
[1723718113114,4.8453,142.01,141.97,33.81]
[1723718113312,1.325,142.01,141.99,3.5208]
[1723718113814,1.325,142.01,141.97,33.81]
[1723718113815,4.8453,142.01,141.97,33.81]
[1723718114111,4.89884302,142.01,141.99,0.05043822]
[1723718114313,3.5205,142.0,141.99,0.05043822]
[1723718118223,3.57394302,142.01,141.99,0.05043822]
[1723718118414,3.57394302,142.01,141.99,13.57043822]
[1723718120917,0.05354302,142.01,142.0,13.52]
[1723718121719,0.05354302,142.01,142.0,17.0405]
[1723718121921,1.2956,142.06,142.03,13.52]
[1723718123224,3.5193,142.05,142.03,13.57024011]
[1723718124911,4.8665823,142.06,142.03,17.09004011]
[1723718125321,1.3473823,142.06,142.04,3.5195]
[1723718125619,0.0517823,142.06,142.05,13.52]
[1723718126921,0.0517823,142.06,142.03,0.05024011]
[1723718127423,3.5709823,142.06,142.03,0.05024011]
[1723718128723,13.52,142.05,141.92,28.5016]
[1723718128925,13.52,142.04,141.97,13.52]
[1723718129221,13.52,142.02,141.96,13.52]
[1723718129426,17.82,142.02,141.96,13.52]
[1723718129624,1.285,142.01,141.96,13.52]
[1723718129925,1.285,142.01,141.96,3.5215]
[1723718129926,3.521,141.99,141.96,3.5215]
[1723718130526,3.521,141.99,141.97,0.05233882]
[1723718131522,3.57312516,142.0,141.97,0.05233882]
[1723718131723,0.05252516,142.0,141.98,33.81]
[1723718131922,0.05252516,142.0,141.97,0.05233882]
[1723718132124,3.5208,141.99,141.97,0.05233882]
[1723718132322,0.05252516,142.0,141.97,0.05233882]
[1723718133926,3.5209,141.99,141.97,0.05233882]
[1723718135423,0.05252516,142.0,141.97,0.05233882]
[1723718135627,0.05252516,142.0,141.97,3.57343882]
[1723718135628,3.57322516,142.0,141.97,3.57343882]
[1723718136032,3.521,141.98,141.97,0.05233882]
[1723718136830,3.5209,141.99,141.97,0.05233882]
[1723718138826,3.57322516,142.0,141.97,3.57363882]
[1723718139336,3.5208,141.99,141.97,3.57363882]
[1723718140043,3.57322516,142.0,141.97,3.57363882]
[1723718141034,3.5209,141.99,141.97,0.05233882]
[1723718143034,3.5209,141.99,141.97,3.57353882]
[1723718143432,3.5209,141.99,141.97,0.05233882]
[1723718145636,0.05252516,142.0,141.97,0.05233882]
[1723718146137,0.05252516,142.0,141.98,3.5209]
[1723718146734,0.05252516,142.0,141.99,3.5208]
[1723718146936,0.05252516,142.0,141.99,37.3308]
[1723718147237,0.05252516,142.0,141.99,40.87616253]
[1723718147639,3.5197,142.04,142.01,3.5202]
[1723718148949,3.57010821,142.04,142.01,3.57245217]
[1723718149739,3.5199,142.03,142.01,3.57245217]
[1723718150141,3.52,142.02,142.01,0.05225217]
[1723718152947,3.5207,142.0,141.97,17.0412]
[1723718153848,3.5207,142.0,141.97,3.5212]
[1723718154142,3.56679987,142.0,141.97,3.57339269]
[1723718156743,3.5209,141.99,141.97,0.05219269]
[1723718156949,0.04609987,142.0,141.97,0.05219269]
[1723718157250,3.5209,141.99,141.97,0.05219269]
[1723718157642,0.04609987,142.0,141.97,0.05219269]
[1723718158147,3.56669987,142.0,141.97,3.57339269]
[1723718160540,0.04609987,142.0,141.99,3.5208]
[1723718160843,1.3284,142.06,141.99,41.6143685]
[1723718161043,4.8476,142.06,142.03,3.5197]
[1723718162052,4.89232068,142.06,142.03,3.57364698]
[1723718162349,3.56392068,142.06,142.03,3.57364698]
[1723718163053,3.5193,142.05,142.03,3.57364698]
[1723718163352,3.5193,142.05,142.03,0.05394698]
[1723718163852,3.56392068,142.06,142.03,3.57364698]
[1723718164346,0.04472068,142.06,142.04,3.5195]
[1723718164751,0.04472068,142.06,142.03,0.05394698]
[1723718165054,3.56382068,142.06,142.03,3.57354698]
[1723718167051,3.5193,142.05,142.03,3.57354698]
[1723718167444,3.56392068,142.06,142.03,3.57354698]
[1723718169549,3.56392068,142.06,142.04,3.5195]
[1723718169856,0.04472068,142.06,142.04,3.5195]
[1723718170162,0.04472068,142.06,142.05,3.5193]
[1723718174052,0.04472068,142.06,142.03,4.35394698]
[1723718174354,0.04472068,142.06,142.03,0.05394698]
[1723718174855,3.5195,142.04,142.03,0.05394698]
[1723718175259,13.51,142.04,141.93,3.085]
[1723718175458,3.5206,142.0,141.96,13.51]
[1723718175657,3.5206,142.0,141.97,17.031]
[1723718175859,3.5206,142.0,141.96,33.8]
[1723718176357,3.5206,142.0,141.97,3.5657276]
[1723718176560,0.05264808,141.99,141.97,0.0446276]
[1723718176952,0.05264808,141.99,141.98,3.5209]
[1723718177565,0.05264808,141.99,141.97,3.5658276]
[1723718179655,0.05264808,141.99,141.98,3.521]
[1723718179862,0.05264808,141.99,141.98,37.321]
[1723718181063,0.05264808,141.99,141.98,3.521]
[1723718181363,0.05264808,141.99,141.97,0.0446276]
[1723718181861,0.05264808,141.99,141.97,3.5657276]
[1723718184165,0.05264808,141.99,141.97,0.0446276]
[1723718184662,0.05264808,141.99,141.97,3.5658276]
[1723718187565,3.57344808,141.99,141.97,3.5658276]
[1723718188165,3.521,141.98,141.97,0.0446276]
[1723718188869,4.7877,141.98,141.97,0.0446276]
[1723718189067,3.5217,141.96,141.9,38.08]
[1723718189371,3.5217,141.96,141.93,3.5222]
[1723718190366,3.572113,141.96,141.93,3.55111608]
[1723718190565,1.3056,142.03,141.95,33.8]
[1723718190768,1.3056,142.03,141.98,33.8]
[1723718191163,3.5201,142.02,141.99,3.5205]
[1723718192070,3.57251128,142.02,141.99,3.57427688]
[1723718193267,0.05241128,142.02,142.0,3.5204]
[1723718194467,0.05241128,142.02,142.01,3.5202]
[1723718195970,0.05241128,142.02,142.0,3.5203]
[1723718196175,0.05241128,142.02,141.99,0.05377688]
[1723718196568,0.05241128,142.02,142.01,3.5201]
[1723718199172,0.05241128,142.02,142.0,3.5203]
[1723718200981,0.05241128,142.02,142.01,3.5201]
[1723718203381,0.05241128,142.02,142.0,3.5202]
[1723718204983,0.05241128,142.02,141.99,33.85377688]
[1723718205183,0.05241128,142.02,141.99,37.36927082]
[1723718205484,0.05241128,142.02,142.01,3.5202]
[1723718205872,0.05241128,142.02,142.01,17.0302]
[1723718215195,0.05241128,142.02,142.0,17.0304]
[1723718216305,0.05241128,142.02,142.01,3.5203]
[1723718216502,3.57261128,142.02,141.99,13.56377688]
[1723718216705,0.05241128,142.02,141.99,13.56377688]
[1723718216905,0.05241128,142.02,141.99,17.08457688]
[1723718217309,3.57251128,142.02,141.99,17.08457688]
[1723718218600,13.51,142.0,141.91,13.51]
[1723718218807,13.51,141.98,141.91,13.51]
[1723718219102,13.51,141.98,141.9,4.26]
[1723718219299,17.77,141.97,141.9,13.51]
[1723718219501,3.5223,141.93,141.89,3.5232]
[1723718219693,13.51,141.95,141.88,13.51]
[1723718219904,33.84,141.96,141.87,33.84]
[1723718220204,3.5222,141.94,141.92,0.0255522]
[1723718221503,1.38705271,141.95,141.92,0.0255522]
[1723718222706,0.05145271,141.95,141.92,0.0255522]
[1723718223803,0.05145271,141.95,141.93,3.5221]
[1723718225796,0.05145271,141.95,141.94,3.5219]
[1723718229207,0.05145271,141.95,141.93,3.5221]
[1723718229412,0.05145271,141.95,141.92,0.0255522]
[1723718229906,0.05145271,141.95,141.93,3.522]
[1723718230110,0.05145271,141.95,141.92,0.0255522]
[1723718230805,0.05145271,141.95,141.93,3.5219]
[1723718231208,0.05145271,141.95,141.92,0.0255522]
[1723718231408,0.05145271,141.95,141.93,3.5222]
[1723718231610,0.05145271,141.95,141.92,0.0255522]
[1723718231911,0.05145271,141.95,141.93,3.5219]
[1723718232514,0.05145271,141.95,141.92,3.5478522]
[1723718232708,0.05145271,141.95,141.92,0.0255522]
[1723718234813,3.57335271,141.95,141.92,3.5477522]
[1723718235212,0.05145271,141.95,141.92,3.5477522]
[1723718236014,0.05145271,141.95,141.93,3.5221]
[1723718238516,3.57315271,141.95,141.92,3.5479522]
[1723718238917,0.05145271,141.95,141.92,0.0255522]
[1723718239109,3.5222,141.93,141.92,0.0255522]
[1723718240317,13.54,141.93,141.87,13.54]
[1723718240705,13.54,141.93,141.88,3.5233]
[1723718241116,17.8,141.93,141.88,3.5233]
[1723718241317,3.5228,141.91,141.88,3.5233]
[1723718244910,0.04979985,141.92,141.86,4.26]
[1723718245107,13.54,141.89,141.81,13.54]
[1723718245312,13.54,141.89,141.81,17.03743272]
[1723718245620,1.3632,141.88,141.82,3.5248]
[1723718245814,2.7346,141.88,141.82,3.5248]
[1723718246112,0.05193255,141.86,141.82,3.5248]
[1723718246711,0.05193255,141.86,141.84,3.5244]
[1723718247221,0.05193255,141.86,141.84,3.5243]
[1723718247521,0.05193255,141.86,141.83,13.54]
[1723718248020,3.57603255,141.86,141.83,17.0646]
[1723718249718,0.05193255,141.86,141.83,13.54]
[1723718249907,0.05193255,141.86,141.84,13.54]
[1723718250509,0.05193255,141.86,141.85,3.5242]
[1723718253926,4.26,141.91,141.85,54.16]
[1723718254115,1.2556,141.93,141.88,13.54]
[1723718254622,4.778,141.93,141.89,3.523]
[1723718254823,1.2556,141.93,141.89,3.523]
[1723718255120,3.5227,141.91,141.9,0.05155481]
[1723718265129,3.5236,141.88,141.81,37.28713803]
[1723718265330,33.8,141.91,141.81,37.28713803]
[1723718265525,2.5491,141.9,141.81,37.28713803]
[1723718265731,3.5239,141.87,141.84,3.5243]
[1723718266324,3.57309343,141.87,141.84,3.5243]
[1723718266838,3.524,141.86,141.83,3.5246]
[1723718267729,0.04919343,141.87,141.77,4.26]
[1723718267925,0.04919343,141.87,141.78,33.8]
[1723718268232,4.26,141.86,141.78,37.40267655]
[1723718268732,3.5245,141.84,141.81,3.5251]
[1723718268932,3.57579519,141.84,141.81,3.5251]
[1723718269131,0.05129519,141.84,141.82,3.5248]
[1723718273542,0.05129519,141.84,141.83,3.5247]
[1723718274036,0.05129519,141.84,141.8,33.8]
[1723718274834,0.05129519,141.84,141.82,3.5248]
[1723718276333,0.05129519,141.84,141.8,33.8]
[1723718276334,0.05129519,141.84,141.83,3.5247]
[1723718278042,0.05129519,141.84,141.82,3.5248]
[1723718278743,3.57569519,141.84,141.81,3.525]
[1723718279943,3.5247,141.83,141.8,3.5253]
[1723718281943,3.57589519,141.84,141.81,3.5252]
[1723718282845,0.05129519,141.84,141.82,3.525]
[1723718283038,0.05129519,141.84,141.79,13.53]
[1723718283237,0.05129519,141.84,141.81,13.53]
[1723718283437,0.05129519,141.84,141.83,3.5248]
[1723718285247,0.05129519,141.84,141.79,13.53]
[1723718286146,3.57579519,141.84,141.81,3.525]
[1723718286849,0.05129519,141.84,141.79,13.53]
[1723718287752,0.05129519,141.84,141.82,3.525]
[1723718289761,0.05129519,141.84,141.83,3.5248]
[1723718291160,0.05129519,141.84,141.83,17.0548]
[1723718291364,14.8243,141.9,141.83,13.53]
[1723718291658,4.8173,141.9,141.85,13.53]
[1723718291866,1.2943,141.9,141.84,13.53]
[1723718292158,3.5237,141.88,141.83,13.53]
[1723718292358,13.53,141.87,141.83,3.5246]
[1723718292570,13.58299441,141.87,141.84,0.05167293]
[1723718292859,17.10689441,141.87,141.84,0.05167293]
[1723718293462,3.524,141.86,141.84,0.05167293]
[1723718295361,13.53,141.86,141.84,0.05167293]
[1723718296062,13.58299441,141.87,141.84,0.05167293]
[1723718296657,3.5241,141.86,141.84,0.05167293]
[1723718299261,3.5243,141.85,141.84,0.05167293]
[1723718300365,3.5241,141.86,141.84,0.05167293]
[1723718302066,3.5241,141.86,141.84,3.57617293]
[1723718303063,3.5241,141.86,141.84,0.05167293]
[1723718303764,3.57689441,141.87,141.84,3.57617293]
[1723718303965,0.05299441,141.87,141.84,0.05167293]
[1723718305571,0.05299441,141.87,141.85,3.5243]
[1723718306257,0.05299441,141.87,141.86,3.524]
[1723718306969,0.05299441,141.87,141.85,3.5241]
[1723718307857,0.05299441,141.87,141.84,0.05167293]
[1723718308062,13.58299441,141.87,141.84,0.05167293]
[1723718308565,3.57689441,141.87,141.84,3.57607293]
[1723718308870,17.10689441,141.87,141.84,3.57607293]
[1723718310573,3.524,141.86,141.84,3.57607293]
[1723718310977,3.524,141.86,141.84,0.05167293]
[1723718311372,13.58299441,141.87,141.84,0.05167293]
[1723718312474,3.5243,141.85,141.84,0.05167293]
[1723718314978,3.5241,141.86,141.84,0.05167293]
[1723718316877,4.90829441,141.87,141.84,3.57617293]
[1723718319181,13.53,141.85,141.84,0.05167293]
[1723718319583,17.0543,141.85,141.84,0.05167293]
[1723718320078,13.53,141.85,141.77,17.79]
[1723718320378,17.0549,141.83,141.8,3.5254]
[1723718320683,17.0549,141.83,141.77,17.79]
[1723718320684,3.5251,141.82,141.79,3.5257]
[1723718321584,3.5251,141.82,141.78,3.5258]
[1723718321785,3.57828062,141.82,141.77,4.26]
[1723718321980,3.57828062,141.82,141.79,3.5257]
[1723718322383,0.05318062,141.82,141.79,3.5257]
[1723718323479,3.57818062,141.82,141.79,3.5257]
[1723718324283,3.57818062,141.82,141.78,3.5259]
[1723718328887,3.57818062,141.82,141.79,3.5257]
[1723718330184,3.57818062,141.82,141.77,17.79]
[1723718330185,0.05318062,141.82,141.77,17.79]
[1723718331286,0.05318062,141.82,141.8,3.5254]
[1723718331992,3.57818062,141.82,141.79,3.5256]
[1723718335691,0.05318062,141.82,141.77,4.26]
[1723718336199,3.5253,141.81,141.78,3.5259]
[1723718337398,3.5255,141.8,141.77,7.7862]
[1723718337590,3.5255,141.8,141.77,3.5262]
[1723718337787,13.53,141.8,141.76,3.5263]
[1723718338294,0.04782418,141.79,141.76,3.5263]
[1723718338590,0.04782418,141.79,141.75,3.5266]
[1723718338999,3.5261,141.78,141.75,3.5266]
[1723718340493,13.53,141.77,141.71,4.26]
[1723718340893,3.5267,141.76,141.71,4.26]
[1723718341096,0.05239885,141.75,141.71,4.26]
[1723718341293,0.05239885,141.75,141.7,13.53]
[1723718341498,0.05239885,141.75,141.72,3.5274]
[1723718343999,0.05239885,141.75,141.73,3.5272]
[1723718344896,0.05239885,141.75,141.72,3.5274]
[1723718345502,3.57929885,141.75,141.72,3.5275]
[1723718354019,0.05239885,141.75,141.69,14.818]
[1723718354216,0.05239885,141.75,141.72,13.53]
[1723718354417,0.05239885,141.75,141.72,17.05853989]
[1723718354721,0.05239885,141.75,141.74,3.527]
[1723718357324,3.5261,141.78,141.75,3.5266]
[1723718359115,3.57893416,141.78,141.75,3.57279744]
[1723718359621,3.5263,141.77,141.75,0.04619744]
[1723718359919,13.53,141.77,141.75,0.04619744]
[1723718360121,3.5265,141.76,141.75,0.04619744]
[1723718360618,3.5263,141.77,141.75,0.04619744]
[1723718362723,3.5265,141.76,141.75,0.04619744]
[1723718363322,17.0565,141.76,141.75,0.04619744]
[1723718367025,13.53,141.76,141.7,3.5279]
[1723718367222,13.53,141.73,141.68,4.26]
[1723718367527,13.53,141.73,141.7,3.528]
[1723718368219,13.58169,141.73,141.7,3.528]
[1723718368621,3.5275,141.72,141.69,3.5281]
[1723718374324,3.5275,141.72,141.68,3.5283]
[1723718376036,3.5275,141.72,141.66,13.53]
[1723718376227,0.05169,141.73,141.69,13.53]
[1723718376529,1.2366,141.77,141.69,13.53]
[1723718376530,0.04807651,141.72,141.71,3.5276]
[1723718376826,13.53,141.74,141.68,13.53]
[1723718377029,13.5781294,141.73,141.66,15.6262]
[1723718377634,0.0481294,141.73,141.68,13.53]
[1723718378534,0.0481294,141.73,141.69,3.5281]
[1723718379728,3.5275,141.72,141.69,3.5281]
[1723718380231,3.5276,141.72,141.67,13.53]
[1723718380436,13.5781294,141.73,141.66,2.0962]
[1723718380437,0.0481294,141.73,141.68,13.53]
[1723718380830,0.0481294,141.73,141.71,3.5277]
[1723718381335,0.0481294,141.73,141.7,3.5278]
[1723718382833,3.5753294,141.73,141.7,3.5278]
[1723718383836,3.5753294,141.73,141.69,3.5281]
[1723718385839,3.5753294,141.73,141.7,3.5279]
[1723718386033,0.0481294,141.73,141.7,3.5279]
[1723718387239,3.5753294,141.73,141.7,3.5279]
[1723718387742,3.5753294,141.73,141.67,13.53]
[1723718388439,3.5275,141.72,141.69,3.5281]
[1723718388630,10.53,141.71,141.63,7.79256089]
[1723718388949,3.528,141.7,141.63,17.79]
[1723718389129,16.0792,141.72,141.65,13.53]
[1723718389538,3.5283,141.69,141.64,17.08594968]
[1723718389737,13.57449257,141.7,141.64,17.08594968]
[1723718390839,4.10249257,141.7,141.66,3.5289]
[1723718391240,0.57449257,141.7,141.64,17.08594968]
[1723718391436,3.5284,141.69,141.65,3.529]
[1723718391841,0.57449257,141.7,141.65,3.529]
[1723718392042,0.57449257,141.7,141.64,17.08594968]
[1723718392741,4.10259257,141.7,141.66,3.5289]
[1723718392940,3.8508,141.72,141.66,3.5289]
[1723718393137,13.53,141.71,141.66,3.5289]
[1723718393536,3.5282,141.7,141.66,3.5289]
[1723718394041,0.04589634,141.69,141.67,0.05069398]
[1723718397243,0.04589634,141.69,141.67,3.57939398]
[1723718397945,0.04589634,141.69,141.67,0.05069398]
[1723718398142,3.5285,141.68,141.67,0.05069398]
[1723718400146,0.04589634,141.69,141.67,0.05069398]
[1723718400346,3.57419634,141.69,141.67,0.05069398]
[1723718400547,0.04589634,141.69,141.67,0.05069398]
[1723718400746,0.04589634,141.69,141.68,17.0585]
[1723718401445,0.04589634,141.69,141.67,3.57929398]
[1723718401953,0.04589634,141.69,141.67,0.05069398]
[1723718402251,0.04589634,141.69,141.68,3.5285]
[1723718402451,0.04589634,141.69,141.67,0.05069398]
[1723718403744,3.57419634,141.69,141.67,0.05069398]
[1723718403953,0.04589634,141.69,141.67,0.05069398]
[1723718405745,3.5285,141.68,141.67,0.05069398]
[1723718413556,7.83419634,141.69,141.67,0.05069398]
[1723718413756,3.57419634,141.69,141.67,0.05069398]
[1723718414466,3.5285,141.68,141.67,0.05069398]
[1723718416271,0.04589634,141.69,141.68,3.5285]
[1723718416574,0.04589634,141.69,141.68,13.53]
[1723718416774,0.04589634,141.69,141.67,0.05069398]
[1723718416975,0.04589634,141.69,141.67,17.10929398]
[1723718417179,0.04589634,141.69,141.67,0.05069398]
[1723718417570,3.57429634,141.69,141.67,0.05069398]
[1723718419569,3.5285,141.68,141.67,0.05069398]
[1723718420777,3.57419634,141.69,141.67,0.05069398]
[1723718421585,3.5285,141.68,141.67,0.05069398]
[1723718423682,13.57589634,141.69,141.63,3.5296]
[1723718423983,13.53,141.64,141.56,13.53]
[1723718424184,54.12,141.66,141.56,13.53]
[1723718424185,13.53,141.62,141.56,17.00428206]
[1723718424382,17.0601,141.62,141.58,3.5309]
[1723718424586,17.79,141.63,141.57,13.53]
[1723718424889,3.5301,141.62,141.58,3.5308]
[1723718425079,0.04828803,141.61,141.58,3.5308]
[1723718426283,0.04828803,141.61,141.52,4.26]
[1723718426587,0.04828803,141.61,141.51,57.4185]
[1723718426588,13.53,141.59,141.43,46.36490785]
[1723718426781,0.04689048,141.58,141.55,3.5316]
[1723718426982,4.26,141.59,141.54,13.53]
[1723718427183,0.0496212,141.58,141.54,3.5319]
[1723718427490,13.5796212,141.58,141.54,3.5319]
[1723718427684,3.5313,141.57,141.51,13.53]
[1723718427879,13.5796212,141.58,141.48,6.9027]
[1723718428082,13.53,141.56,141.48,5.599]
[1723718428278,0.05003373,141.54,141.48,1.339]
[1723718428484,0.05003373,141.54,141.46,0.8281]
[1723718428485,13.58003373,141.54,141.47,13.53]
[1723718428686,3.5323,141.53,141.47,13.53]
[1723718428982,0.05003373,141.54,141.49,13.53]
[1723718429687,0.05003373,141.54,141.48,13.53]
[1723718429982,7.7924,141.53,141.49,3.5331]
[1723718430387,3.5325,141.52,141.48,17.0634]
[1723718430689,0.05119177,141.52,141.48,13.53]
[1723718431078,0.05119177,141.52,141.49,3.5332]
[1723718431686,0.05119177,141.52,141.5,3.533]
[1723718432190,0.05119177,141.52,141.49,17.0632]
[1723718432485,0.05119177,141.52,141.49,13.53]
[1723718432792,0.05119177,141.52,141.49,17.0632]
[1723718434392,0.05119177,141.52,141.48,17.0634]
[1723718434393,3.58369177,141.52,141.48,17.0634]
[1723718434595,3.58369177,141.52,141.48,13.53]
[1723718434886,0.05119177,141.52,141.49,13.53]
[1723718435286,0.05119177,141.52,141.45,4.26]
[1723718435488,0.05119177,141.52,141.5,13.53]
[1723718435683,0.05119177,141.52,141.5,17.0629]
[1723718436687,0.05119177,141.52,141.5,13.53]
[1723718438289,0.05119177,141.52,141.51,3.5327]
[1723718438984,0.05119177,141.52,141.51,17.0627]
[1723718440591,72.23250527,141.63,141.51,13.53]
[1723718440592,17.79,141.6,141.51,13.53]
[1723718440791,17.79,141.6,141.54,13.53]
[1723718441192,3.5314,141.57,141.52,13.53]
[1723718441593,3.5315,141.56,141.53,3.5321]
[1723718441794,13.53,141.58,141.51,13.53]
[1723718441990,1.2591,141.57,141.51,13.53]
[1723718442192,0.05330673,141.56,141.53,0.05244661]
[1723718443095,0.05330673,141.56,141.53,13.58244661]
[1723718443691,0.05330673,141.56,141.55,17.0617]
[1723718444293,0.05330673,141.56,141.54,3.5319]
[1723718444995,0.05330673,141.56,141.55,3.5317]
[1723718445296,0.05330673,141.56,141.55,17.0617]
[1723718448407,0.05330673,141.56,141.55,21.3217]
[1723718449109,0.05330673,141.56,141.55,3.5317]
[1723718451502,0.05330673,141.56,141.53,0.05244661]
[1723718451701,0.05330673,141.56,141.53,4.31244661]
[1723718452007,0.05330673,141.56,141.54,13.53]
[1723718452704,0.05330673,141.56,141.55,3.5317]
[1723718452899,0.05330673,141.56,141.55,17.0617]
[1723718454507,3.5304,141.61,141.57,3.531]
[1723718454709,3.5304,141.61,141.58,13.53]
[1723718455112,3.5304,141.61,141.58,17.0609]
[1723718455415,3.5304,141.61,141.58,13.53]
[1723718455803,3.57545841,141.61,141.58,13.58234898]
[1723718456508,3.57545841,141.61,141.58,17.11324898]
[1723718456999,0.04505841,141.61,141.6,3.5305]
[1723718458499,0.04505841,141.61,141.59,17.0606]
[1723718458702,0.04505841,141.61,141.59,21.3206]
[1723718459508,0.04505841,141.61,141.6,3.5305]
[1723718459915,0.04505841,141.61,141.6,17.0605]
[1723718464215,0.04505841,141.61,141.6,3.5305]
[1723718464409,0.04505841,141.61,141.58,0.05234898]
[1723718465714,0.04505841,141.61,141.58,3.58334898]
[1723718466120,0.04505841,141.61,141.58,0.05234898]
[1723718467010,0.04505841,141.61,141.58,3.58314898]
[1723718467404,0.04505841,141.61,141.58,0.05234898]
[1723718467613,3.57535841,141.61,141.58,0.05234898]
[1723718468110,3.5306,141.6,141.58,0.05234898]
[1723718468309,0.04505841,141.61,141.58,0.05234898]
[1723718468814,3.5306,141.6,141.58,0.05234898]
[1723718470716,0.04505841,141.61,141.58,0.05234898]
[1723718470717,3.57545841,141.61,141.58,0.05234898]
[1723718471315,3.5305,141.6,141.58,0.05234898]
[1723718473419,3.5307,141.59,141.58,0.05234898]
[1723718474118,3.5306,141.6,141.58,0.05234898]
[1723718474322,2.54465841,141.61,141.58,0.05234898]
[1723718474624,4.83045841,141.61,141.58,0.05234898]
[1723718474822,1.30005841,141.61,141.58,13.58234898]
[1723718475024,1.30005841,141.61,141.58,17.11324898]
[1723718475714,4.83045841,141.61,141.58,13.58234898]
[1723718476424,1.30005841,141.61,141.58,17.11334898]
[1723718478022,0.04505841,141.61,141.59,3.5306]
[1723718478624,0.04505841,141.61,141.59,13.53]
[1723718479824,0.04505841,141.61,141.6,3.5305]